Workbook

Sheet Sheet1
A1: Month | B1: Market Size | C1: Market Share | D1: Total Sales | E1: Total Revenue | F1: Monthly Sales | G1: Monthly Revenue
A2: Apr 2024 | B2: 15000000 | C2: 0.00% | D2: =C2*B2 -> 0 | E2: =3000*D2 -> 0 | F2: 0 | G2: =3000*F2 -> 0
A3: May 2024 | B3: =B2+30000000/35 -> 15857142.86 | C3: =C2+0.01/35 -> 0.03% | D3: =C3*B3 -> 4530.612245 | E3: =3000*D3 -> 13591836.73 | F3: =D3-D2 -> 4530.612245 | G3: =3000*F3 -> 13591836.73 | I3: Total Revenue
A4: Jun 2024 | B4: =B3+30000000/35 -> 16714285.71 | C4: =C3+0.01/35 -> 0.06% | D4: =C4*B4 -> 9551.020408 | E4: =3000*D4 -> 28653061.22 | F4: =D4-D3 -> 5020.408163 | G4: =3000*F4 -> 15061224.49 | I4: =E37 -> 1.35E+09
A5: Jul 2024 | B5: =B4+30000000/35 -> 17571428.57 | C5: =C4+0.01/35 -> 0.09% | D5: =C5*B5 -> 15061.22449 | E5: =3000*D5 -> 45183673.47 | F5: =D5-D4 -> 5510.204082 | G5: =3000*F5 -> 16530612.24
A6: Aug 2024 | B6: =B5+30000000/35 -> 18428571.43 | C6: =C5+0.01/35 -> 0.11% | D6: =C6*B6 -> 21061.22449 | E6: =3000*D6 -> 63183673.47 | F6: =D6-D5 -> 6000 | G6: =3000*F6 -> 18000000
A7: Sep 2024 | B7: =B6+30000000/35 -> 19285714.29 | C7: =C6+0.01/35 -> 0.14% | D7: =C7*B7 -> 27551.02041 | E7: =3000*D7 -> 82653061.22 | F7: =D7-D6 -> 6489.795918 | G7: =3000*F7 -> 19469387.76
A8: Oct 2024 | B8: =B7+30000000/35 -> 20142857.14 | C8: =C7+0.01/35 -> 0.17% | D8: =C8*B8 -> 34530.61224 | E8: =3000*D8 -> 103591836.7 | F8: =D8-D7 -> 6979.591837 | G8: =3000*F8 -> 20938775.51
A9: Nov 2024 | B9: =B8+30000000/35 -> 21000000 | C9: =C8+0.01/35 -> 0.20% | D9: =C9*B9 -> 42000 | E9: =3000*D9 -> 126000000 | F9: =D9-D8 -> 7469.387755 | G9: =3000*F9 -> 22408163.27
A10: Dec 2024 | B10: =B9+30000000/35 -> 21857142.86 | C10: =C9+0.01/35 -> 0.23% | D10: =C10*B10 -> 49959.18367 | E10: =3000*D10 -> 149877551 | F10: =D10-D9 -> 7959.183673 | G10: =3000*F10 -> 23877551.02
A11: Jan 2025 | B11: =B10+30000000/35 -> 22714285.71 | C11: =C10+0.01/35 -> 0.26% | D11: =C11*B11 -> 58408.16327 | E11: =3000*D11 -> 175224489.8 | F11: =D11-D10 -> 8448.979592 | G11: =3000*F11 -> 25346938.78
A12: Feb 2025 | B12: =B11+30000000/35 -> 23571428.57 | C12: =C11+0.01/35 -> 0.29% | D12: =C12*B12 -> 67346.93878 | E12: =3000*D12 -> 202040816.3 | F12: =D12-D11 -> 8938.77551 | G12: =3000*F12 -> 26816326.53
A13: Mar 2025 | B13: =B12+30000000/35 -> 24428571.43 | C13: =C12+0.01/35 -> 0.31% | D13: =C13*B13 -> 76775.5102 | E13: =3000*D13 -> 230326530.6 | F13: =D13-D12 -> 9428.571429 | G13: =3000*F13 -> 28285714.29
A14: Apr 2025 | B14: =B13+30000000/35 -> 25285714.29 | C14: =C13+0.01/35 -> 0.34% | D14: =C14*B14 -> 86693.87755 | E14: =3000*D14 -> 260081632.7 | F14: =D14-D13 -> 9918.367347 | G14: =3000*F14 -> 29755102.04
A15: May 2025 | B15: =B14+30000000/35 -> 26142857.14 | C15: =C14+0.01/35 -> 0.37% | D15: =C15*B15 -> 97102.04082 | E15: =3000*D15 -> 291306122.4 | F15: =D15-D14 -> 10408.16327 | G15: =3000*F15 -> 31224489.8
A16: Jun 2025 | B16: =B15+30000000/35 -> 27000000 | C16: =C15+0.01/35 -> 0.40% | D16: =C16*B16 -> 108000 | E16: =3000*D16 -> 324000000 | F16: =D16-D15 -> 10897.95918 | G16: =3000*F16 -> 32693877.55
A17: Jul 2025 | B17: =B16+30000000/35 -> 27857142.86 | C17: =C16+0.01/35 -> 0.43% | D17: =C17*B17 -> 119387.7551 | E17: =3000*D17 -> 358163265.3 | F17: =D17-D16 -> 11387.7551 | G17: =3000*F17 -> 34163265.31
A18: Aug 2025 | B18: =B17+30000000/35 -> 28714285.71 | C18: =C17+0.01/35 -> 0.46% | D18: =C18*B18 -> 131265.3061 | E18: =3000*D18 -> 393795918.4 | F18: =D18-D17 -> 11877.55102 | G18: =3000*F18 -> 35632653.06
A19: Sep 2025 | B19: =B18+30000000/35 -> 29571428.57 | C19: =C18+0.01/35 -> 0.49% | D19: =C19*B19 -> 143632.6531 | E19: =3000*D19 -> 430897959.2 | F19: =D19-D18 -> 12367.34694 | G19: =3000*F19 -> 37102040.82
A20: Oct 2025 | B20: =B19+30000000/35 -> 30428571.43 | C20: =C19+0.01/35 -> 0.51% | D20: =C20*B20 -> 156489.7959 | E20: =3000*D20 -> 469469387.8 | F20: =D20-D19 -> 12857.14286 | G20: =3000*F20 -> 38571428.57
A21: Nov 2025 | B21: =B20+30000000/35 -> 31285714.29 | C21: =C20+0.01/35 -> 0.54% | D21: =C21*B21 -> 169836.7347 | E21: =3000*D21 -> 509510204.1 | F21: =D21-D20 -> 13346.93878 | G21: =3000*F21 -> 40040816.33
A22: Dec 2025 | B22: =B21+30000000/35 -> 32142857.14 | C22: =C21+0.01/35 -> 0.57% | D22: =C22*B22 -> 183673.4694 | E22: =3000*D22 -> 551020408.2 | F22: =D22-D21 -> 13836.73469 | G22: =3000*F22 -> 41510204.08
A23: Jan 2026 | B23: =B22+30000000/35 -> 33000000 | C23: =C22+0.01/35 -> 0.60% | D23: =C23*B23 -> 198000 | E23: =3000*D23 -> 594000000 | F23: =D23-D22 -> 14326.53061 | G23: =3000*F23 -> 42979591.84
A24: Feb 2026 | B24: =B23+30000000/35 -> 33857142.86 | C24: =C23+0.01/35 -> 0.63% | D24: =C24*B24 -> 212816.3265 | E24: =3000*D24 -> 638448979.6 | F24: =D24-D23 -> 14816.32653 | G24: =3000*F24 -> 44448979.59
A25: Mar 2026 | B25: =B24+30000000/35 -> 34714285.71 | C25: =C24+0.01/35 -> 0.66% | D25: =C25*B25 -> 228122.449 | E25: =3000*D25 -> 684367346.9 | F25: =D25-D24 -> 15306.12245 | G25: =3000*F25 -> 45918367.35
A26: Apr 2026 | B26: =B25+30000000/35 -> 35571428.57 | C26: =C25+0.01/35 -> 0.69% | D26: =C26*B26 -> 243918.3673 | E26: =3000*D26 -> 731755102 | F26: =D26-D25 -> 15795.91837 | G26: =3000*F26 -> 47387755.1
A27: May 2026 | B27: =B26+30000000/35 -> 36428571.43 | C27: =C26+0.01/35 -> 0.71% | D27: =C27*B27 -> 260204.0816 | E27: =3000*D27 -> 780612244.9 | F27: =D27-D26 -> 16285.71429 | G27: =3000*F27 -> 48857142.86
A28: Jun 2026 | B28: =B27+30000000/35 -> 37285714.29 | C28: =C27+0.01/35 -> 0.74% | D28: =C28*B28 -> 276979.5918 | E28: =3000*D28 -> 830938775.5 | F28: =D28-D27 -> 16775.5102 | G28: =3000*F28 -> 50326530.61
A29: Jul 2026 | B29: =B28+30000000/35 -> 38142857.14 | C29: =C28+0.01/35 -> 0.77% | D29: =C29*B29 -> 294244.898 | E29: =3000*D29 -> 882734693.9 | F29: =D29-D28 -> 17265.30612 | G29: =3000*F29 -> 51795918.37
A30: Aug 2026 | B30: =B29+30000000/35 -> 39000000 | C30: =C29+0.01/35 -> 0.80% | D30: =C30*B30 -> 312000 | E30: =3000*D30 -> 936000000 | F30: =D30-D29 -> 17755.10204 | G30: =3000*F30 -> 53265306.12
A31: Sep 2026 | B31: =B30+30000000/35 -> 39857142.86 | C31: =C30+0.01/35 -> 0.83% | D31: =C31*B31 -> 330244.898 | E31: =3000*D31 -> 990734693.9 | F31: =D31-D30 -> 18244.89796 | G31: =3000*F31 -> 54734693.88
A32: Oct 2026 | B32: =B31+30000000/35 -> 40714285.71 | C32: =C31+0.01/35 -> 0.86% | D32: =C32*B32 -> 348979.5918 | E32: =3000*D32 -> 1046938776 | F32: =D32-D31 -> 18734.69388 | G32: =3000*F32 -> 56204081.63
A33: Nov 2026 | B33: =B32+30000000/35 -> 41571428.57 | C33: =C32+0.01/35 -> 0.89% | D33: =C33*B33 -> 368204.0816 | E33: =3000*D33 -> 1104612245 | F33: =D33-D32 -> 19224.4898 | G33: =3000*F33 -> 57673469.39
A34: Dec 2026 | B34: =B33+30000000/35 -> 42428571.43 | C34: =C33+0.01/35 -> 0.91% | D34: =C34*B34 -> 387918.3673 | E34: =3000*D34 -> 1163755102 | F34: =D34-D33 -> 19714.28571 | G34: =3000*F34 -> 59142857.14
A35: Jan 2027 | B35: =B34+30000000/35 -> 43285714.29 | C35: =C34+0.01/35 -> 0.94% | D35: =C35*B35 -> 408122.449 | E35: =3000*D35 -> 1224367347 | F35: =D35-D34 -> 20204.08163 | G35: =3000*F35 -> 60612244.9
A36: Feb 2027 | B36: =B35+30000000/35 -> 44142857.14 | C36: =C35+0.01/35 -> 0.97% | D36: =C36*B36 -> 428816.3265 | E36: =3000*D36 -> 1286448980 | F36: =D36-D35 -> 20693.87755 | G36: =3000*F36 -> 62081632.65
A37: Mar 2027 | B37: =B36+30000000/35 -> 45000000 | C37: =C36+0.01/35 -> 1.00% | D37: =C37*B37 -> 450000 | E37: =3000*D37 -> 1350000000 | F37: =D37-D36 -> 21183.67347 | G37: =3000*F37 -> 63551020.41
